bitfinex/quotes_SOLUSD_20241115
["timestamp","ask_amount","ask_price","bid_price","bid_amount"]
[1731643880850,13.82124764,208.53,208.48,0.12549]
[1731643881051,15.8066,208.59,208.48,0.12549]
[1731643881052,13.82124764,208.54,208.48,0.12549]
[1731643881647,13.82124764,208.53,208.48,0.12549]
[1731643881867,13.82124764,208.52,208.48,0.12549]
[1731643883062,13.82124764,208.53,208.48,0.12549]
[1731643883577,13.82124764,208.54,208.48,4.92189]
[1731643883742,13.82124764,208.54,208.48,18.74313764]
[1731643883947,13.82124764,208.56,208.49,13.82124764]
[1731643884344,18.61604764,208.56,208.49,18.61754764]
[1731643884764,18.61604764,208.56,208.5,13.82124764]
[1731643884967,13.82124764,208.55,208.49,4.7963]
[1731643885467,13.82124764,208.55,208.49,18.61754764]
[1731643885955,13.82124764,208.55,208.49,4.7963]
[1731643886157,13.82124764,208.5,208.41,15.1685]
[1731643886359,13.82124764,208.43,208.41,15.1685]
[1731643886562,13.82124764,208.42,208.41,15.1685]
[1731643886864,13.82124764,208.43,208.39,11.9967]
[1731643889155,13.82124764,208.41,208.36,15.4499]
[1731643889355,13.82124764,208.39,208.36,20.2491]
[1731643890476,13.82124764,208.41,208.36,20.2491]
[1731643894380,13.82124764,208.41,208.36,4.7992]
[1731643894678,22.277,208.44,208.31,12.0013]
[1731643894679,13.82124764,208.37,208.31,12.0013]
[1731643894888,13.82124764,208.33,208.29,4.8009]
[1731643895068,13.82124764,208.32,208.28,15.5528]
[1731643895252,13.82124764,208.31,208.28,15.5528]
[1731643895653,13.82124764,208.32,208.28,15.5528]
[1731643895853,13.82124764,208.33,208.28,15.5528]
[1731643896972,13.82124764,208.33,208.28,20.3539]
[1731643898364,13.82124764,208.32,208.28,20.3539]
[1731643900063,13.82124764,208.33,208.28,20.3539]
[1731643900467,13.82124764,208.34,208.29,23.902374]
[1731643901060,13.82124764,208.4,208.28,27.5558]
[1731643901061,13.82124764,208.33,208.28,27.5558]
[1731643901264,13.82124764,208.31,208.28,12.003]
[1731643901674,13.82124764,208.32,208.28,12.003]
[1731643904577,13.82124764,208.33,208.28,12.003]
[1731643907375,13.82124764,208.29,208.23,15.47]
[1731643907684,13.82124764,208.26,208.22,0.482461]
[1731643909080,11.9996,208.34,208.22,0.482461]
[1731643909285,13.82124764,208.27,208.22,0.482461]
[1731643910287,13.82124764,208.28,208.22,0.482461]
[1731643910788,13.82124764,208.25,208.22,0.482461]
[1731643911283,13.82124764,208.26,208.22,0.482461]
[1731643911807,13.82124764,208.25,208.22,0.482461]
[1731643912985,13.82124764,208.26,208.22,0.482461]
[1731643914888,18.62294764,208.26,208.22,0.482461]
[1731643916084,12.12559,208.33,208.22,0.482461]
[1731643916085,24.8003,208.32,208.22,0.482461]
[1731643916265,13.82124764,208.28,208.22,0.482461]
[1731643916464,13.82124764,208.27,208.22,0.482461]
[1731643916677,24.8003,208.32,208.22,5.284961]
[1731643916888,13.82124764,208.28,208.22,0.482461]
[1731643917093,13.82124764,208.26,208.22,0.482461]
[1731643917293,13.82124764,208.25,208.22,0.482461]
[1731643917795,13.82124764,208.26,208.22,0.482461]
[1731643918485,18.62304764,208.26,208.22,0.482461]
[1731643918875,13.82124764,208.24,208.22,0.482461]
[1731643922190,4.8018,208.26,208.22,0.482461]
[1731643922977,18.62304764,208.26,208.22,0.482461]
[1731643924479,13.82124764,208.25,208.22,0.482461]
[1731643924898,13.82124764,208.24,208.22,0.482461]
[1731643925384,13.82124764,208.23,208.22,0.482461]
[1731643927203,18.62354764,208.23,208.22,0.482461]
[1731643932791,20.12549,208.22,208.09,8.86451991]
[1731643933100,8.86451991,208.16,208.09,8.86451991]
[1731643933282,8.86451991,208.16,208.1,8.86451991]
[1731643934908,13.85063445,208.16,208.1,13.85063445]
[1731643935395,13.85063445,208.14,208.05,16.8226]
[1731643935591,13.85063445,208.14,208.08,13.85063445]
[1731643936312,4.8049,208.12,208.07,13.85063445]
[1731643936895,4.8049,208.12,208.08,13.85063445]
[1731643937289,13.85063445,208.14,208.07,13.85063445]
[1731643938290,4.8039,208.16,208.05,13.85063445]
[1731643938291,13.85063445,208.11,208.05,13.85063445]
[1731643938496,13.85063445,208.1,208.04,13.85063445]
[1731643938685,16.8138,208.16,208.07,13.85063445]
[1731643938884,13.85063445,208.14,208.08,13.85063445]
[1731643939406,18.65453445,208.16,208.09,13.85063445]
[1731643939898,13.85063445,208.15,208.09,13.85063445]
[1731643940684,4.8044,208.14,208.09,13.85063445]
[1731643941593,13.85063445,208.17,208.1,13.85063445]
[1731643941790,13.85063445,208.2,208.14,13.85063445]
[1731643941994,4.8028,208.21,208.17,13.85063445]
[1731643942305,13.85063445,208.23,208.16,13.85063445]
[1731643942599,13.85063445,208.2,208.13,13.85063445]
[1731643942804,0.1,208.24,208.11,6.5089]
[1731643942805,13.85063445,208.18,208.11,13.85063445]
[1731643943403,13.85063445,208.17,208.1,13.85063445]
[1731643943786,4.8039,208.16,208.1,13.85063445]
[1731643945189,4.8039,208.16,208.11,13.85063445]
[1731643949605,4.8034,208.19,208.13,13.85063445]
[1731643949903,13.85063445,208.18,208.12,13.85063445]
[1731643950206,4.8034,208.19,208.14,13.85063445]
[1731643950416,4.8034,208.19,208.15,13.85063445]
[1731643950716,4.8034,208.19,208.14,13.85063445]
[1731643950895,4.8034,208.19,208.13,13.85063445]
[1731643951212,18.65403445,208.19,208.12,13.85063445]
[1731643951615,4.8034,208.19,208.13,13.85063445]
[1731643954321,13.85063445,208.14,208.05,15.0015]
[1731643954491,13.85063445,208.1,208.01,0.482461]
[1731643954687,13.85063445,208.09,208.03,13.85063445]
[1731643954917,0.2,208.14,208.03,8.86996745]
[1731643954918,8.86996745,208.1,208.03,8.86996745]
[1731643955808,8.86996745,208.09,208.02,8.86996745]
[1731643956391,4.8058,208.08,208.02,8.86996745]
[1731643956615,4.8058,208.08,208.03,8.86996745]
[1731643956818,4.8058,208.08,208.03,13.85953564]
[1731643957510,4.8058,208.08,208.04,13.85953564]
[1731643958707,4.8058,208.08,208.03,13.85953564]
[1731643959821,4.8058,208.08,208.04,13.85953564]
[1731643960195,4.8053,208.1,208.05,13.85953564]
[1731643960610,13.85953564,208.15,208.09,13.85953564]
[1731643961015,13.85953564,208.14,208.08,13.85953564]
[1731643961596,13.85953564,208.14,208.07,13.85953564]
[1731643962522,4.8046,208.13,208.07,13.85953564]
[1731643963024,18.66413564,208.13,208.06,13.85953564]
[1731643963403,18.66413564,208.13,208.07,13.85953564]
[1731643963615,4.8046,208.13,208.07,13.85953564]
[1731643965324,13.85953564,208.13,208.06,13.85953564]
[1731643966506,13.85953564,208.14,208.07,13.85953564]
[1731643967620,4.8046,208.13,208.07,13.85953564]
[1731643969011,4.8046,208.13,208.08,13.85953564]
[1731643969201,4.8046,208.13,208.01,0.482461]
[1731643969202,4.8044,208.15,208.11,13.85953564]
[1731643969933,4.8044,208.15,208.1,13.85953564]
[1731643970224,4.8044,208.15,208.09,13.85953564]
[1731643970409,18.66393564,208.15,208.09,13.85953564]
[1731643970826,4.8044,208.15,208.11,13.85953564]
[1731643972529,4.8044,208.15,208.1,13.85953564]
[1731643972933,18.66393564,208.15,208.08,14.18190244]
[1731643973235,13.85953564,208.14,208.08,14.18190244]
[1731643973414,13.85953564,208.14,208.08,0.3223668]
[1731643973611,13.85953564,208.12,208.08,0.3223668]
[1731643973814,13.85953564,208.11,208.08,0.3223668]
[1731643974932,4.8053,208.1,208.08,0.3223668]
[1731643977432,4.8053,208.1,208.08,9.19140461]
[1731643977912,4.8053,208.1,208.08,0.3223668]
[1731643978446,4.8046,208.13,208.08,9.19140461]
[1731643980023,4.8046,208.13,208.08,0.3223668]
[1731643982026,4.8046,208.13,208.08,6.68e-05]
[1731643982027,8.86903781,208.09,208.08,6.68e-05]
[1731643982518,8.86903781,208.1,208.08,6.68e-05]
[1731643982923,8.86903781,208.09,208.08,6.68e-05]
[1731643983737,13.67413781,208.11,208.08,6.68e-05]
[1731643983932,8.86903781,208.1,208.08,6.68e-05]
[1731643984931,4.8056,208.09,208.08,6.68e-05]
[1731643986021,13.85855273,208.14,208.08,6.68e-05]
[1731643986214,13.85855273,208.09,208.08,6.68e-05]
[1731643986422,13.85855273,208.1,208.08,6.68e-05]
[1731643986637,13.85855273,208.09,208.08,6.68e-05]
[1731643987836,18.66415273,208.09,208.08,6.68e-05]
[1731643988942,13.85855273,208.12,208.08,6.68e-05]
[1731643989623,4.8051,208.11,208.08,6.68e-05]
[1731643994025,13.85855273,208.14,208.08,13.85861953]
[1731643994524,13.85855273,208.16,208.1,13.85855273]
[1731643995137,13.85855273,208.16,208.09,13.85855273]
[1731643995337,4.8042,208.15,208.09,13.85855273]
[1731643996138,4.8042,208.15,208.1,13.85855273]
[1731643996730,4.8042,208.15,208.09,13.85855273]
[1731644000235,4.8039,208.17,208.14,13.85855273]
[1731644001249,4.8033,208.19,208.14,13.85855273]
[1731644004551,13.85855273,208.16,208.1,13.85855273]
[1731644004851,4.8033,208.19,208.09,8.86508239]
[1731644004852,8.86508239,208.15,208.09,8.86508239]
[1731644005261,8.86508239,208.15,208.08,24.26514919]
[1731644005561,8.86508239,208.12,208.08,6.68e-05]
[1731644005853,8.86508239,208.1,208.08,6.68e-05]
[1731644006155,8.86508239,208.09,208.08,6.68e-05]
[1731644006343,13.67068239,208.09,208.08,6.68e-05]
[1731644007533,20.12549,208.13,208.08,6.68e-05]
[1731644007752,8.86508239,208.09,208.08,6.68e-05]
[1731644008743,4.8056,208.09,208.08,6.68e-05]
[1731644009155,38.7927942,208.09,208.08,6.68e-05]
[1731644013564,38.6673042,208.09,208.08,6.68e-05]
[1731644014647,38.7927942,208.09,208.08,6.68e-05]
[1731644016256,38.6673042,208.09,208.08,6.68e-05]
[1731644016652,54.4580042,208.09,208.08,6.68e-05]
[1731644016843,54.5834942,208.09,208.08,6.68e-05]
[1731644021748,78.3603782,208.09,208.08,6.68e-05]
[1731644022143,0.1,208.07,207.94,6.1613]
[1731644022342,0.1,208.07,207.93,15.1383]
[1731644022343,13.8617042,207.97,207.93,15.1383]
[1731644022550,0.2,208.07,207.93,15.1383]
[1731644022551,13.8617042,207.96,207.93,15.1383]
[1731644023083,20.0,207.93,207.88,0.4709868]
[1731644023241,33.8617042,207.89,207.88,0.4709868]
[1731644023542,38.6719042,207.89,207.88,0.4709868]
[1731644024263,0.1,207.94,207.88,0.4709868]
[1731644024469,33.8617042,207.89,207.88,0.4709868]
[1731644024768,13.8617042,207.89,207.88,0.4709868]
[1731644025574,4.809,207.94,207.88,0.4709868]
[1731644025746,13.8617042,207.91,207.88,0.4709868]
[1731644027072,13.8617042,207.93,207.88,0.4709868]
[1731644027448,13.8617042,207.94,207.88,0.4709868]
[1731644027748,13.8617042,207.91,207.88,0.4709868]
[1731644028159,13.8617042,207.9,207.88,0.4709868]
[1731644028455,13.8617042,207.89,207.88,0.4709868]
[1731644030669,18.6717042,207.9,207.88,0.4709868]
[1731644030970,13.8617042,207.89,207.88,0.4709868]
[1731644033756,73.4444782,207.89,207.88,0.4709868]
[1731644034254,49.4421042,207.89,207.88,0.4709868]
[1731644035449,0.1,207.85,207.71,13.8617042]
[1731644035649,13.8617042,207.77,207.7,13.8617042]
[1731644035874,13.8617042,207.78,207.71,13.8617042]
[1731644036368,13.8617042,207.76,207.69,13.8617042]
[1731644036560,13.8617042,207.78,207.71,13.8617042]
[1731644037348,16.8397,207.84,207.74,13.8617042]
[1731644037349,13.8617042,207.81,207.74,13.8617042]
[1731644037583,13.8617042,207.78,207.71,13.8617042]
[1731644037877,13.8617042,207.76,207.69,13.8617042]
[1731644038069,13.8617042,207.77,207.7,13.8617042]
[1731644039187,4.813,207.77,207.71,13.8617042]
[1731644040273,18.6747042,207.77,207.71,13.8617042]
[1731644040470,13.8617042,207.79,207.72,13.8617042]
[1731644040849,13.8617042,207.8,207.74,13.8617042]
[1731644042596,13.8617042,207.81,207.74,13.8617042]
[1731644043210,16.8382,207.86,207.7,4.8144]
[1731644043211,13.8617042,207.82,207.75,13.8617042]
[1731644043373,18.6726042,207.86,207.8,13.8617042]
[1731644043570,4.8109,207.86,207.8,13.8617042]
[1731644043899,4.8109,207.86,207.71,23.876884]
[1731644043900,4.8106,207.88,207.83,13.8617042]
[1731644044199,4.8106,207.88,207.84,13.8617042]
[1731644044489,4.8106,207.88,207.83,13.8617042]
[1731644044688,13.8617042,207.89,207.83,13.8617042]
[1731644045189,13.8617042,207.89,207.82,13.8617042]
[1731644045502,13.8617042,207.88,207.81,13.8617042]
[1731644046176,13.8617042,207.89,207.82,13.8617042]
[1731644046380,4.8095,207.92,207.87,13.8617042]
[1731644046588,4.8095,207.92,207.8,18.7739042]
[1731644046589,4.8095,207.92,207.88,13.8617042]
[1731644047395,4.8091,207.94,207.88,13.8617042]
[1731644047897,4.8091,207.94,207.82,0.1]
[1731644047898,4.8091,207.94,207.9,13.8617042]
[1731644048488,4.8091,207.94,207.89,13.8617042]
[1731644048690,4.8091,207.94,207.83,16.8406]
[1731644048691,13.8617042,207.92,207.83,16.8406]
[1731644048885,13.8617042,207.92,207.85,13.8617042]
[1731644049067,13.8617042,207.9,207.84,13.8617042]
[1731644050692,18.6717042,207.9,207.84,13.8617042]
[1731644051561,18.6717042,207.9,207.83,13.8617042]
[1731644052558,13.8617042,207.91,207.84,13.8617042]
[1731644052777,13.8617042,207.97,207.9,13.8617042]
[1731644052983,13.8617042,207.97,207.91,13.8617042]
[1731644053391,13.8617042,207.96,207.9,13.8617042]
[1731644053680,13.8617042,207.96,207.89,13.8617042]
[1731644054384,13.8617042,207.96,207.83,16.9405]
[1731644054385,18.6704042,207.96,207.9,13.8617042]
[1731644055462,4.8087,207.96,207.91,13.8617042]
[1731644055662,13.8617042,208.0,207.94,13.8617042]
[1731644055865,13.8617042,208.01,207.95,13.8617042]
[1731644056470,13.8617042,207.99,207.93,13.8617042]
[1731644056673,13.8617042,208.0,207.94,13.8617042]
[1731644057671,18.6694042,208.0,207.94,13.8617042]
[1731644058573,18.6694042,208.0,207.93,13.8617042]
[1731644059395,18.6694042,208.0,207.94,13.8617042]
[1731644060897,13.8617042,207.96,207.9,13.8617042]
[1731644061070,13.8617042,207.96,207.89,13.8617042]
[1731644061269,13.8617042,207.96,207.9,13.8617042]
[1731644061886,13.8617042,207.97,207.91,13.8617042]
[1731644062087,13.8617042,207.98,207.92,13.8617042]
[1731644062412,18.6691042,208.01,207.94,13.8617042]
[1731644062773,13.8617042,208.0,207.94,13.8617042]
[1731644062972,4.8074,208.01,207.94,13.8617042]
[1731644062973,18.6691042,208.01,207.94,13.8617042]
[1731644063394,13.8617042,208.0,207.94,13.8617042]
[1731644064585,18.6691042,208.01,207.94,13.8617042]
[1731644066406,4.8079,207.99,207.94,13.8617042]
[1731644066775,18.6696042,207.99,207.93,13.8617042]
[1731644067597,13.8617042,207.98,207.91,13.8617042]
[1731644067896,13.8617042,207.98,207.89,16.8355]
[1731644067897,13.8617042,207.96,207.89,13.8617042]
[1731644068400,13.8617042,207.92,207.86,13.8617042]
[1731644069076,13.8617042,207.93,207.86,13.8617042]
[1731644069278,13.8617042,207.93,207.87,13.8617042]
[1731644069986,18.6710042,207.93,207.87,13.8617042]
[1731644071394,18.6710042,207.93,207.86,13.8617042]
[1731644072394,13.8617042,207.92,207.85,13.8617042]
[1731644072596,13.8617042,207.89,207.82,29.4765042]
[1731644073111,13.8617042,207.9,207.83,13.8617042]
[1731644073403,4.8093,207.93,207.82,20.4266]
[1731644073404,18.6710042,207.93,207.87,13.8617042]
[1731644074019,18.6710042,207.93,207.86,13.8617042]
[1731644074309,13.8617042,207.9,207.84,13.8617042]
[1731644074612,4.8102,207.89,207.84,13.8617042]
[1731644074908,4.8093,207.93,207.87,13.8617042]
[1731644075116,18.6710042,207.93,207.87,13.8617042]
[1731644075486,18.6710042,207.93,207.86,13.8617042]
[1731644076207,13.8617042,207.92,207.86,13.8617042]
[1731644077581,18.6710042,207.93,207.86,13.8617042]
[1731644077786,18.6713042,207.92,207.86,13.8617042]
[1731644078100,13.8617042,207.89,207.83,25.8907042]
[1731644078290,13.8617042,207.89,207.82,15.6148]
[1731644078608,13.8617042,207.88,207.81,18.6736042]
[1731644079504,18.6722042,207.88,207.81,18.6736042]
[1731644080503,18.6722042,207.88,207.79,36.0932]
[1731644080504,4.8105,207.88,207.82,13.8617042]
[1731644081684,13.8617042,207.87,207.81,13.8617042]
[1731644082104,18.6722042,207.88,207.81,13.8617042]
[1731644082297,13.8617042,207.82,207.73,12.0343]
[1731644082496,6.0228,207.85,207.73,12.0343]
[1731644082497,13.8617042,207.79,207.73,13.8617042]
[1731644082712,13.8617042,207.78,207.72,13.8617042]
[1731644083304,13.8617042,207.78,207.71,13.8617042]
[1731644083606,18.6745042,207.78,207.72,13.8617042]
[1731644083999,4.8128,207.78,207.72,13.8617042]
[1731644085501,13.8617042,207.81,207.74,18.6753042]
[1731644085711,13.8617042,207.81,207.74,13.8617042]
[1731644086299,13.8617042,207.81,207.75,13.8617042]
[1731644087326,4.8123,207.8,207.74,13.8617042]
[1731644087504,18.6740042,207.8,207.73,13.8617042]
[1731644087806,13.8617042,207.79,207.73,13.8617042]
[1731644088314,13.8617042,207.78,207.72,13.8617042]
[1731644088524,13.8617042,207.78,207.71,12.036]
[1731644088693,18.6740042,207.8,207.73,13.8617042]
[1731644089408,13.8617042,207.79,207.73,13.8617042]
[1731644089613,18.6743042,207.79,207.73,13.8617042]
[1731644092509,13.8617042,207.8,207.73,13.8617042]
[1731644092813,15.0978,207.87,207.79,13.8617042]
[1731644093117,15.0978,207.87,207.82,13.8617042]
[1731644093610,4.8111,207.86,207.82,13.8617042]
[1731644095207,4.8104,207.88,207.83,13.8617042]
[1731644096322,18.6721042,207.88,207.78,16.8443]
[1731644096519,13.8617042,207.87,207.81,13.8617042]
[1731644097524,4.8109,207.86,207.81,13.8617042]
[1731644097700,4.8109,207.86,207.8,13.8617042]
[1731644098410,18.6726042,207.86,207.76,15.6048]
[1731644098723,18.6726042,207.86,207.8,13.8617042]
[1731644099500,4.8109,207.86,207.81,13.8617042]
[1731644099718,4.8109,207.86,207.82,13.8617042]
[1731644099922,4.8109,207.86,207.78,4.8127]
[1731644099923,4.8106,207.88,207.84,13.8617042]
[1731644100718,11.2068,207.9,207.86,13.8617042]
[1731644100929,4.8101,207.9,207.87,13.8617042]
[1731644101102,4.8097,207.92,207.89,13.8617042]
[1731644101304,4.8097,207.92,207.87,13.8617042]
[1731644101606,13.8617042,207.9,207.84,13.8617042]
[1731644102617,4.8102,207.89,207.84,13.8617042]
[1731644102810,18.6719042,207.89,207.83,13.8617042]
[1731644103009,13.8617042,207.88,207.81,25.8913042]
[1731644103409,13.8617042,207.88,207.82,13.8617042]
[1731644103926,13.8617042,207.87,207.8,13.8617042]
[1731644104223,13.8617042,207.85,207.78,13.8617042]
[1731644104417,13.8617042,207.84,207.78,13.8617042]
[1731644104620,4.8116,207.83,207.78,13.8617042]
[1731644105614,4.8116,207.83,207.77,13.8617042]
[1731644105923,16.1985,207.89,207.82,13.8617042]
[1731644106138,16.1985,207.89,207.83,13.8617042]
[1731644106320,30.0602042,207.89,207.83,13.8617042]
[1731644107323,4.8106,207.88,207.83,13.8617042]
[1731644107526,18.6723042,207.88,207.82,13.8617042]
[1731644107832,18.6723042,207.88,207.81,13.8617042]
[1731644108123,18.6723042,207.88,207.78,4.8126]
[1731644108337,18.6723042,207.88,207.81,13.8617042]
[1731644108720,18.6723042,207.88,207.78,16.8445]
[1731644108721,18.6723042,207.88,207.82,13.8617042]
[1731644109039,4.8106,207.88,207.83,13.8617042]
[1731644109201,4.8106,207.88,207.82,13.8617042]
[1731644109404,18.6723042,207.88,207.81,13.8617042]
[1731644110010,13.8617042,207.87,207.8,13.8617042]
[1731644110327,13.8617042,207.84,207.78,25.8936042]
[1731644110904,13.8617042,207.84,207.78,13.8617042]
[1731644111329,13.8617042,207.84,207.77,13.8617042]
[1731644111911,4.8106,207.88,207.79,13.8617042]
[1731644111912,13.8617042,207.85,207.79,13.8617042]
[1731644112635,13.8617042,207.85,207.78,13.8617042]
[1731644112826,4.8104,207.88,207.77,13.8617042]
[1731644112827,13.8617042,207.84,207.77,13.8617042]
[1731644113009,13.8617042,207.82,207.75,13.8617042]
[1731644113529,13.8617042,207.82,207.76,13.8617042]
[1731644113728,13.8617042,207.82,207.75,13.8617042]
[1731644114113,4.812,207.81,207.75,13.8617042]
[1731644115132,18.6737042,207.81,207.74,25.8958042]
[1731644115310,18.6737042,207.81,207.74,13.8617042]
[1731644115507,34.1001042,207.81,207.74,13.8617042]
[1731644116822,13.8617042,207.79,207.72,13.8617042]
[1731644117029,20.2384,207.81,207.71,13.8617042]
[1731644117030,13.8617042,207.78,207.71,13.8617042]
[1731644117216,20.2384,207.81,207.69,12.0365]
[1731644117217,13.8617042,207.79,207.72,13.8617042]
[1731644117433,13.8617042,207.78,207.71,13.8617042]
[1731644117733,13.8617042,207.77,207.7,13.8617042]
[1731644118231,13.8617042,207.75,207.67,0.4709868]
[1731644118424,13.8617042,207.74,207.67,14.332691]
[1731644118830,13.8617042,207.74,207.68,13.8617042]
[1731644119028,4.8139,207.73,207.68,13.8617042]
[1731644119417,4.8139,207.73,207.67,14.332691]
[1731644120426,13.8617042,207.71,207.67,0.4709868]
[1731644121530,13.8617042,207.68,207.67,0.4709868]
[1731644121734,29.0176042,207.68,207.67,0.4709868]
[1731644122550,33.8327042,207.68,207.67,0.4709868]
[1731644122918,53.8327042,207.68,207.67,0.4709868]
[1731644124455,33.8327042,207.68,207.67,0.4709868]
[1731644124624,19.971,207.68,207.67,0.4709868]
[1731644124947,33.8327042,207.68,207.67,0.4709868]
[1731644126632,53.8327042,207.68,207.67,0.4709868]
[1731644128331,53.9581942,207.68,207.67,0.4709868]
[1731644132140,0.12549,207.63,207.55,0.804]
[1731644132340,13.8617042,207.57,207.55,0.804]
[1731644132541,13.8617042,207.58,207.55,0.804]
[1731644133531,4.8176,207.57,207.55,0.804]
[1731644134053,18.6793042,207.57,207.55,0.804]
[1731644134434,13.8617042,207.56,207.55,0.804]
[1731644134658,18.6793042,207.57,207.55,0.804]
[1731644134850,4.8176,207.57,207.55,0.804]
[1731644135348,13.8617042,207.56,207.55,0.804]
[1731644136655,4.8176,207.57,207.55,0.804]
[1731644137154,4.816,207.64,207.56,13.8617042]
[1731644137464,18.6777042,207.64,207.58,13.8617042]
[1731644137639,18.6777042,207.64,207.57,13.8617042]
[1731644138565,13.8617042,207.63,207.57,13.8617042]
[1731644138730,4.8164,207.62,207.57,13.8617042]
[1731644139141,4.2856,207.62,207.57,13.8617042]
[1731644140133,18.6777042,207.64,207.58,13.8617042]
[1731644141055,4.816,207.64,207.58,13.8617042]
[1731644141238,4.816,207.64,207.59,13.8617042]
[1731644142142,4.8155,207.67,207.62,13.8617042]
[1731644142339,6.4331,207.73,207.65,13.8617042]
[1731644142660,13.8617042,207.67,207.61,13.8617042]
[1731644142958,13.8617042,207.69,207.63,13.8617042]
[1731644143359,13.8617042,207.7,207.64,13.8617042]
[1731644144160,4.8145,207.71,207.66,13.8617042]
[1731644144337,18.6762042,207.71,207.65,13.8617042]
[1731644144537,4.8145,207.71,207.66,13.8617042]
[1731644145250,18.6762042,207.71,207.65,13.8617042]
[1731644145449,13.8617042,207.7,207.64,13.8617042]
[1731644145649,3.76617348,207.77,207.69,13.8617042]
[1731644145854,13.8617042,207.75,207.69,13.8617042]
[1731644146040,13.8617042,207.76,207.7,13.8617042]
[1731644146640,18.6748042,207.77,207.71,13.8617042]
[1731644149559,13.8617042,207.78,207.71,13.8617042]
[1731644149967,0.1,207.83,207.71,13.8617042]
[1731644149968,27.8953,207.85,207.76,13.8617042]
[1731644150265,13.8617042,207.81,207.71,12.036]
[1731644150462,13.8617042,207.81,207.74,13.8617042]
[1731644150666,13.8617042,207.82,207.75,13.8617042]
[1731644151154,13.8617042,207.86,207.79,13.8617042]
[1731644151357,13.8617042,207.87,207.8,13.8617042]
[1731644151578,13.8617042,207.89,207.83,13.8617042]
[1731644151750,22.3327,207.95,207.79,25.8930042]
[1731644151751,13.8617042,207.86,207.79,25.8930042]
[1731644151946,4.8101,207.9,207.79,12.0313]
[1731644152276,13.8617042,207.86,207.79,25.8930042]
[1731644152444,13.8617042,207.86,207.8,13.8617042]
[1731644152643,13.8617042,207.86,207.79,25.8930042]
[1731644155040,13.8617042,207.87,207.8,13.8617042]
[1731644155246,13.8617042,207.88,207.82,13.8617042]
[1731644155460,13.8617042,207.87,207.81,13.8617042]
[1731644155980,4.8093,207.93,207.79,16.8438]
[1731644155981,4.8093,207.93,207.86,13.8617042]
[1731644156155,4.8093,207.93,207.89,13.8617042]
[1731644156474,4.8093,207.93,207.88,13.8617042]
[1731644156860,4.8093,207.93,207.87,13.8617042]
[1731644157658,36.1944042,207.95,207.88,13.8617042]
[1731644157969,41.0033042,207.95,207.88,13.8617042]
[1731644158550,13.8617042,207.93,207.86,13.8617042]
[1731644158860,18.6709042,207.94,207.87,13.8617042]
[1731644159244,18.6709042,207.94,207.85,4.8111]
[1731644159245,13.8617042,207.93,207.86,13.8617042]
[1731644159441,4.8092,207.94,207.84,13.8617042]
[1731644159442,13.8617042,207.91,207.84,13.8617042]
[1731644159669,13.8617042,207.92,207.85,13.8617042]
[1731644160659,4.8097,207.91,207.85,13.8617042]
[1731644160862,13.8617042,207.92,207.85,13.8617042]
[1731644161169,13.8617042,207.91,207.85,13.8617042]
[1731644161490,18.6711042,207.93,207.86,13.8617042]
[1731644161852,13.8617042,207.92,207.85,18.6727042]
[1731644162059,13.8617042,207.88,207.81,13.8617042]
[1731644162248,0.12549,207.92,207.8,18.6739042]
[1731644162249,13.8617042,207.87,207.8,18.6739042]
[1731644162444,13.8617042,207.89,207.82,13.8617042]
[1731644162659,4.8094,207.93,207.75,30.4693]
[1731644162660,18.6711042,207.93,207.86,13.8617042]
[1731644163350,13.8617042,207.96,207.89,13.8617042]
[1731644163547,13.8617042,207.97,207.91,13.8617042]
[1731644164475,13.8617042,207.98,207.91,13.8617042]
[1731644164655,4.8079,207.99,207.93,13.8617042]
[1731644164846,13.8617042,208.02,207.95,13.8617042]
[1731644165050,13.8617042,207.99,207.92,13.8617042]
[1731644165261,13.8617042,208.0,207.93,13.8617042]
[1731644166357,18.6695042,208.0,207.93,13.8617042]
[1731644166559,13.8617042,207.99,207.92,13.8617042]
[1731644166868,13.8617042,207.97,207.91,13.8617042]
[1731644167071,13.8617042,207.96,207.9,12.0248]
[1731644167268,4.8078,208.0,207.88,16.4657]
[1731644167269,13.8617042,207.94,207.88,16.4657]
[1731644167474,13.8617042,207.95,207.88,30.3274042]
[1731644167767,13.8617042,207.95,207.89,13.8617042]
[1731644167979,13.8617042,207.96,207.89,13.8617042]
[1731644169177,13.8617042,207.98,207.92,13.8617042]
[1731644169470,13.8617042,207.94,207.88,16.4657]
[1731644169675,13.8617042,207.9,207.85,6.6547]
[1731644169975,7.44477902,208.04,207.89,0.1]
[1731644170178,13.8617042,208.02,207.95,13.8617042]
[1731644170368,0.12549,208.04,207.9,16.5855]
[1731644170683,13.8617042,207.94,207.9,16.5855]
[1731644170882,13.8617042,207.93,207.9,16.5855]
[1731644171057,13.8617042,207.94,207.9,16.5855]